Cogmind - Beta 13 @@@ ROGUE MODE // 2024.05.19 @ 17:52:07 Player: Occam Result: Destroyed by YI-UF0 with YI-UF0's Doublenader Performance ------------- Evolutions (0) 0 Regions Visited (2) 400 Robots Destroyed (27) 135 Value Destroyed (403) 403 Prototype IDs (0) 0 Alien Tech Used (0) 0 Bonus (0) 0 TOTAL SCORE: 938 Bonus ------- None Cogmind --------- Core Integrity 0/250 Matter 300/300 Energy 68/100 System Corruption 1% Temperature Cool (0) Movement Core (800) Ox15 Location -10/Mines Parts ------- > --- POWER (1) -------- (None) > --- PROPULSION (2) --- (None) > --- UTILITY (2) ------ High-capacity Storage Unit Structural Scanner > --- WEAPON (2) ------- Medium Laser Particle Gun > --- INVENTORY (20) --- Light Ion Engine Aluminum Leg Aluminum Leg Compact Wheel Huge Storage Unit High-capacity Matter Pod (200) Structural Scanner Signal Interpreter Seismic Detector Seismic Detector Seismic Detector Small Laser Small Laser Grenade Launcher Datajack Peak State ------------ > --- POWER ------------ Ion Engine > --- PROPULSION ------- Light Treads Light Treads > --- UTILITY ---------- High-capacity Storage Unit Structural Scanner > --- WEAPON ----------- Particle Gun Assault Rifle > --- INVENTORY -------- Ion Engine Light Ion Engine Aluminum Leg Aluminum Leg Compact Wheel Compact Wheel Medium Storage Unit High-capacity Storage Unit Huge Storage Unit High-capacity Matter Pod Structural Scanner Seismic Detector Seismic Detector Seismic Detector Seismic Detector Medium Laser Small Laser Small Laser Grenade Launcher Datajack [Rating: 10] Favorites ----------- Power Ion Engine Engine Ion Engine Propulsion Light Treads Treads Light Treads Leg Aluminum Leg Wheel Compact Wheel Utility High-capacity Storage Unit Device Seismic Detector Storage High-capacity Storage Unit Weapon Particle Gun Energy Gun Particle Gun Ballistic Gun Assault Rifle Special Melee Weapon Datajack Build | -11 -10 -10 ------- Run | Yrd Mat Min Slots Evolved . | . . . Power . | . . . Propulsion . | . . . Utility . | . . . Weapon . | . . . Parts Attached 23 | 1 20 2 Power 2 | . 2 . Engine 2 | . 2 . Core . | . . . Reactor . | . . . Propulsion 8 | . 7 1 Treads 6 | . 6 . Leg 1 | . 1 . Wheel 1 | . . 1 Hover . | . . . Flight . | . . . Utility 4 | 1 3 . Device 2 | 1 1 . Storage 2 | . 2 . Processor . | . . . Hackware . | . . . Protection . | . . . Artifact . | . . . Weapon 9 | . 8 1 Energy Gun 5 | . 4 1 Energy Cannon . | . . . Ballistic Gun 3 | . 3 . Ballistic Cannon . | . . . Launcher . | . . . Special Weapon . | . . . Impact Weapon . | . . . Slashing Weapon . | . . . Piercing Weapon . | . . . Special Melee Weapon 1 | . 1 . Unidentified Prototypes . | . . . Parts Lost 6 | . 1 5 Power 1 | . . 1 Propulsion 3 | . . 3 Utility . | . . . Weapon 2 | . 1 1 Highest Loss Streak 5 | . 1 5 To Critical Strikes . | . . . Average Slot Usage (%) 94 | . 95 87 Engine 10 | . 10 10 Treads 25 | . 26 20 Leg 1 | . 1 . Device 14 | . 14 14 Storage 14 | . 14 14 Energy Gun 21 | . 21 14 Ballistic Gun 6 | . 5 10 Naked Turns . | . . . Heaviest Build 51 | 12 51 51 Greatest Support 40 | 20 40 40 Greatest Overweight (x) 2 | . 2 2 Average Overweight (x) . | . . 1 Largest Inventory Capacity 20 | 8 20 20 Average Capacity 18 | 8 18 20 Most Carried 20 | 7 20 17 Average Carried 14 | 6 15 16 Final Capacity 20 | 8 20 20 Final Carried 17 | 6 17 15 Class Distribution -------------------- 100% | Mutant Dominant Class ---------------- Mutant | -10/Materials Mutant | -10/Mines Resources | -11 -10 -10 ----------- Run | Yrd Mat Min Matter Collected 644 | 210 403 31 Remotely . | . . . Salvage Created 767 | 133 555 79 Parts 57 | 6 47 4 Haulers Intercepted 2 | . 2 . Recyclers Shooed 1 | . 1 . Parts Field Recycled . | . . . Retrieved Matter . | . . . Parts Self-Destructed . | . . . Prevented . | . . . Kills | -11 -10 -10 ------- Run | Yrd Mat Min Combat Hostiles Destroyed 10 | . 8 2 Guns 9 | . 7 2 Classes Destroyed 8 | 2 6 . Worker 3 | . 3 . Builder 4 | . 4 . Tunneler 4 | 3 1 . Hauler 2 | . 2 . Recycler 1 | 1 . . Watcher 3 | . 3 . Swarmer 3 | . 3 . Grunt 7 | . 5 2 Best Kill Streak 4 | 2 4 2 Combat Bots Only 3 | . 3 2 Max Kills in Single Turn 1 | 1 1 1 Gunslinging . | . . . Exploded . | . . . Melee . | . . . Uniques/NPCs Destroyed . | . . . Combat | -11 -10 -10 -------- Run | Yrd Mat Min Hostile Shots Fired 86 | . 60 26 Missed 24 | . 15 9 Damage Taken 1289 | . 508 781 Core 284 | . 73 211 Absorbed by Shields . | . . . Regen/Repaired (Parts) 213 | . 213 . Core Remaining (%) 100 | 100 . . Volleys Fired 76 | 9 61 6 Largest 2 | 2 2 2 Hottest 115 | 90 115 85 Shots Fired 148 | 18 122 8 Gun 148 | 18 122 8 Cannon . | . . . Launcher . | . . . Special . | . . . Kinetic 8 | . 6 2 Thermal 140 | 18 116 6 Explosive . | . . . Electromagnetic . | . . . Robot Hit Streak 13 | 3 13 13 Robot Miss Streak 4 | 2 4 1 Penetration Max . | . . . Secondary Targets 2 | . 1 1 Max Gunslinging Chain 1 | . 1 1 Shots Hit Robots 87 | 12 68 7 Core Hits 36 | 5 28 3 Critical Kills . | . . . Critical Parts Destroyed . | . . . Critical Strikes 5 | 1 3 1 Burn 5 | 1 3 1 Melee Attacks . | . . . Impact . | . . . Slashing . | . . . Piercing . | . . . Sneak Attacks . | . . . Combat Hostiles . | . . . Follow-up Attacks . | . . . Damage Inflicted 1077 | 145 839 93 Guns 1077 | 145 839 93 Cannons . | . . . Explosions . | . . . Melee . | . . . Ramming . | . . . Kinetic 91 | . 66 25 Thermal 986 | 145 773 68 Explosive . | . . . Electromagnetic . | . . . Impact . | . . . Slashing . | . . . Piercing . | . . . Highest Corruption 1 | . 1 1 Average Corruption 1 | . 1 1 Corruption Purged . | . . . Corruption Blocked . | . . . Effects 6 | . 6 . Message Errors 1 | . 1 . Energy Discharges 2 | . 2 . Parts Fused 1 | . 1 . Data Loss (minor) 1 | . 1 . Data Loss (major) 1 | . 1 . Overload Shots . | . . . Overflow Damage . | . . . Projectiles . | . . . Explosions . | . . . Melee . | . . . Knockbacks . | . . . Impact . | . . . Kinetic . | . . . Secondary . | . . . Self-Inflicted Damage . | . . . Shots . | . . . Rammed . | . . . Targets Rammed . | . . . Kicked . | . . . Crushed . | . . . Highest Temperature 231 | 180 231 36 Average Temperature 72 | 78 72 22 Received Heat Transfer 225 | . 207 18 Siege Activations . | . . . Robots Corrupted . | . . . Combat Hostiles . | . . . Parts Fried . | . . . Impact Corruptions . | . . . Robots Melted 1 | . 1 . Combat Hostiles 1 | . 1 . Parts Melted 3 | . 3 . Heat Transferred 2923 | 434 2230 259 Parts Sabotaged . | . . . Parts Stolen . | . . . Parts Stripped . | . . . Power Chain Reactions . | . . . Alert | -11 -10 -10 ------- Run | Yrd Mat Min Peak Influence 131 | 20 131 68 Initial 13 | . 13 3 Average 42 | 10 43 54 Maximum Alert Level . | . . . Low Security (%) 100 | 100 100 100 Level 1 . | . . . Level 2 . | . . . Level 3 . | . . . Level 4 . | . . . Level 5 . | . . . High Security . | . . . Max Security . | . . . Squads Dispatched 2 | . 2 . Investigation 1 | . 1 . Extermination . | . . . Reinforcement 1 | . 1 . Assault . | . . . Garrison . | . . . Intercept . | . . . Searches Triggered . | . . . Construction Impeded . | . . . Haulers Reinforced . | . . . Active Scanning Responses . | . . . Cargo Convoy Interrupts . | . . . Stealth | -11 -10 -10 --------- Run | Yrd Mat Min Distress Signals 1 | . 1 . Communications Jammed . | . . . Distress Signals . | . . . Times Spotted 20 | . 18 2 Peak Tracking Total 3 | . 3 1 Tactical Retreats 1 | . 1 . Traps | -11 -10 -10 ------- Run | Yrd Mat Min Traps Triggered 3 | . 3 . Indirectly . | . . . Trap Hack Attempts 1 | . 1 . Triggered . | . . . Disarmed . | . . . Reprogrammed 1 | . 1 . Reused . | . . . Traps Extracted . | . . . Installed . | . . . Triggered . | . . . Machines | -11 -10 -10 ---------- Run | Yrd Mat Min Machines Disabled . | . . . Max in Single Turn . | . . . Machines Repaired . | . . . Machines Dismantled . | . . . Machines Sabotaged . | . . . Overloaded Fab Kills . | . . . Hacking | -11 -10 -10 --------- Run | Yrd Mat Min Machines Accessed 8 | . 8 . Terminals 6 | . 6 . Fabricators . | . . . Repair Stations 1 | . 1 . Recycling Units 1 | . 1 . Scanalyzers . | . . . Garrison Access . | . . . Total Hacks 26 | . 26 . Successful 15 | . 15 . Failed 11 | . 11 . Catastrophic 1 | . 1 . Database Lockouts . | . . . Manual 17 | . 17 . Terminals 19 | . 19 . Fabricators . | . . . Repair Stations 6 | . 6 . Recycling Units 1 | . 1 . Scanalyzers . | . . . Garrison Access . | . . . Terminal Hacks 6 | . 6 . Part Schematic 1 | . 1 . Robot Analysis 3 | . 3 . Terminal Index 1 | . 1 . Alert Level 1 | . 1 . Fabricator Hacks . | . . . Repair Station Hacks 6 | . 6 . Scan Component 3 | . 3 . Repair 3 | . 3 . Recycling Unit Hacks 1 | . 1 . Report Inventory 1 | . 1 . Scanalyzer . | . . . Garrison Access Hacks . | . . . Unauthorized Hacks 2 | . 2 . Terminals 2 | . 2 . Botnet 2 | . 2 . Fabricators . | . . . Repair Stations . | . . . Recycling Units . | . . . Scanalyzers . | . . . Garrison Access . | . . . Data Cores Recovered . | . . . Used . | . . . Hacking Detections 7 | . 7 . Full Trace Events 2 | . 2 . Feedback Events . | . . . Feedback Blocked . | . . . Robot Schematics Acquired . | . . . Robots Built . | . . . Authchips . | . . . Time . | . . . Total Robot Build Rating . | . . . Part Schematics Acquired 1 | . 1 . Parts Built . | . . . Authchips . | . . . Time . | . . . Total Part Build Rating . | . . . Parts Repaired 3 | . 3 . Time 78 | . 78 . Parts Recycled . | . . . Recycled Matter . | . . . Retrieved Matter . | . . . Retrieved Components . | . . . Parts Scanalyzed . | . . . Part Schematics Acquired . | . . . Parts Damaged . | . . . Bothacking | -11 -10 -10 ------------ Run | Yrd Mat Min Used RIF Installer . | . . . Robots Hacked . | . . . Non-combat . | . . . Combat . | . . . Robot Hacks Applied . | . . . Relay Couplers Released . | . . . Fabnet Peak Effective % . | . . . Robots Rewired . | . . . Allies Hacked . | . . . Hacks Repelled . | . . . Allies | -11 -10 -10 -------- Run | Yrd Mat Min Total Allies . | . . . Largest Group . | . . . Highest-Rated Group . | . . . Highest-Rated Ally . | . . . Total Orders . | . . . Ally Attacks . | . . . Total Damage . | . . . Kills . | . . . Allies Corrupted . | . . . Allies Melted . | . . . Intel | -11 -10 -10 ------- Run | Yrd Mat Min Robot Analysis Total 3 | . 3 . Derelict Logs Recovered . | . . . Drone Launches . | . . . Drone Recoveries . | . . . Exploration | -11 -10 -10 ------------- Run | Yrd Mat Min Turns Passed 1797 | 69 1656 72 Spaces Moved 641 | 19 594 28 Core . | . . . Treads 553 | . 534 19 Legs 79 | 19 60 . Wheels 9 | . . 9 Hover . | . . . Flight . | . . . Fastest Speed 120 | 120 120 130 Average Speed 219 | 120 223 204 Slowest Speed 320 | 120 320 240 Overloaded Moves . | . . . Propulsion Burnouts . | . . . Robots Hopped . | . . . Cave-ins Triggered . | . . . Exploration Rate (%) 37 | 3 93 16 Regions Visited 2 Branch Regions 1 Pre-discovered Areas . | . . . Known Exits Taken . | . . . Unknown Exits Taken 2 | 1 1 . Scrap Searched . | . . . Spaces Dug . | . . . Terrain Destroyed . | . . . Melee . | . . . Projectile . | . . . AOE . | . . . Terrain Rammed . | . . . Walls Destroyed . | . . . Machines Disabled . | . . . Actions | -11 -10 -10 --------- Run | Yrd Mat Min Total 880 | 47 797 36 Wait 117 | 17 100 . Move 639 | 18 593 28 Hop . | . . . Pick Up 14 | 1 13 . Fast Attach 8 | 1 7 . Attach 8 | . 6 2 Detach 5 | . 5 . Swap 7 | . 7 . Drop 5 | 1 4 . Fire 76 | 9 61 6 Melee . | . . . Ram . | . . . Kick . | . . . Crush . | . . . Escape Stasis . | . . . Rewire . | . . . Trap 1 | . 1 . Miscellaneous . | . . . Route ------- -11/Scrapyard -10/Materials (discovered 5 exits: [*Mat x3] / [*Min x2]) -10/Mines (discovered 1 exit: [*Mat]) History --------- Turn | Location | Event 1 | -11/Scrapyard | Discovered new exit (range 3) 70 | -11/Scrapyard | Entered Materials 70 | -10/Materials | Discovered new exit (range 7) 313 | -10/Materials | Build established: Mutant 570 | -10/Materials | Derelicts attacked the area 768 | -10/Materials | Discovered new exit (range 13) 1014 | -10/Materials | Discovered new exit (range 3) 1123 | -10/Materials | Discovered new exit (range 16) 1260 | -10/Materials | Repaired Lgt. Treads 1401 | -10/Materials | Discovered new exit (range 9) 1615 | -10/Materials | Repaired Lgt. Treads 1642 | -10/Materials | Repaired Assault Rifle 1726 | -10/Materials | Entered Mines 1757 | -10/Mines | Discovered new exit (range 9) 1776 | -10/Mines | Core integrity fell below 50% 1795 | -10/Mines | Core integrity fell below 20% 1798 | -10/Mines | Destroyed by YI-UF0 with YI-UF0's Doublenader Last Messages --------------- 01726_ G-34 Mercenary destroyed. 01726_ Switching to secondary target: G-47 Trooper. 01729_ G-47 Trooper destroyed. 01730_ S-10 Pest destroyed. 01737_ Acquired 16 matter. 01752_ R-06 Scavenger destroyed. 01757_ EXIT=FOUND 01757_ Seismic Survey Station disabled. 01762_ The unstable cave ceiling collapses. 01769_ YI-UF0 mumbles something. 01772_ Ion Engine destroyed. 01776_ K-01 Serf collects debris. 01777_ Lgt. Treads destroyed. 01778_ K-01 Serf collects debris. 01779_ Assault Rifle destroyed. 01789_ Extracted 5 matter. 01790_ The unstable cave ceiling collapses. 01792_ Extracted 10 matter. 01797_ The unstable cave ceiling collapses. 01798_ Com. Wheel destroyed. Map ----- +----------------------------------------------------+ | | | | | | | | | | | | | | | ???????????????????????????? | | ???????????????????????????? | | ???????????????????????????? | | ???????????????????????????? | | ???????????????????????????? | | ???????????????????????????? | | ???????????????????????????? | | ???????????????????????????? | | ???????????????????????????? | | ???????????????????????????? | | ???????????????????????????? | | ???????????????????????????? | | ???????????????????????????? | | ##########?????????????????? | | ###########????????????????? | | ###????????###?????? | | ##????????###?????? | | # ##??####? ?????? | | # @ ######### ##??????? | | # ##### ### ##??????? | | # ##??????? | | # ###??????? | | # # ##???????? | | ## ####?????? | | ## # ####?????? | | ### # ##?????? | | #### ## ##?????? | | ?####### ##?????? | | ??######## g ##?????? | | ?????#### ##?????? | | ????? ## ##?????? | | ??##### ##?????? | | ??## # ##?????? | | ??## ####????? | | ?### = # $##????? | | ?## % [ ## ##????? | | ?### =< % #### ##????? | | ?## % ! ##### ##????? | | ?## # ###?? ##????? | | ?## [ #??? ##????? | | ?#### # = ##???? ????? | | ?#### # ???? ?????? | | ???# % ?????? ? ????? | +----------------------------------------------------+ Best States ------------- Heat Dissipation 25 Energy Generation 10 Energy Capacity 250 Matter Stores 300 Matter Capacity 300 Sight Range 16 Terrain Scan Density 10 Evasion (%) 55 Recoil Reduction 2 Item Schematics ----------------- Huge Storage Unit | -10/Materials | Hacked Robot Schematics ------------------ None Fabricated ------------ Nothing Alien Tech Used ----------------- None Achievements -------------- None Challenges ------------ None Game ------ Seed DerelictWeaponsBay Manual? 0 Play Time 00:12:55 Cumulative 317.9 hours Start 2024.05.19 @ 17:39:02 End 2024.05.19 @ 17:52:07 Sessions 1 Manual Loads 0 Difficulty Rogue Special Mode None Game No. 194 Rogue 50 Adventurer 144 Explorer 0 Win Type - Total 4 Types 2/0/1/1/0/0/0/0/0 Lore% 64 Gallery% 78 Achievement% 64 Wizard Run 0 Options --------- Layout 0 ASCII 0 Keyboard 0 Movement Mouse Keybinds 0 Fullscreen 2 Font 20/SmallcapsGlow Map View 66x50 Zoom Use 0% Tactical HUD 1 Map Filters NONE Filters NONE Steam X RUN: 52d447d5-961d-473f-8de9-7aa8dea1e84a